Cogmind - Beta 13 @@@ ROGUE MODE // 2024.05.06 @ 18:23:08 Player: luckinvolved Result: Self-destructed Performance ------------- Evolutions (2) 1000 Regions Visited (5) 1000 Robots Destroyed (7) 35 Value Destroyed (89) 89 Prototype IDs (2) 40 Alien Tech Used (0) 0 Bonus (300) 300 TOTAL SCORE: 2464 Bonus ------- Aligned with FarCom 300 Cogmind --------- Core Integrity 536/550 Matter 253/300 Energy 223/250 System Corruption 0% Temperature Cool (4) Movement Walking (62) Location -8/Materials Parts ------- > --- POWER (1) -------- Ion Engine > --- PROPULSION (4) --- Titanium Leg Potential Leg Potential Leg > --- UTILITY (4) ------ High-capacity Storage Unit Reaction Control System Improved Propulsion Shielding PSU Rigger > --- WEAPON (2) ------- Assault Rifle Light Assault Rifle > --- INVENTORY (20) --- Light Ion Engine Light Treads Light Treads Wheel Improved Sensor Array Signal Interpreter Signal Interpreter Terrain Scan Processor 0b10 Alert Chip Grenade Launcher Grenade Launcher Rocket Launcher Peak State ------------ > --- POWER ------------ Ion Engine > --- PROPULSION ------- Titanium Leg Potential Leg Potential Leg > --- UTILITY ---------- High-capacity Storage Unit Reaction Control System Improved Propulsion Shielding PSU Rigger > --- WEAPON ----------- Assault Rifle Light Assault Rifle > --- INVENTORY -------- Light Ion Engine Light Treads Light Treads Wheel Improved Sensor Array Signal Interpreter Signal Interpreter Terrain Scan Processor 0b10 Alert Chip Grenade Launcher Grenade Launcher Rocket Launcher [Rating: 43] Favorites ----------- Power Ion Engine Engine Ion Engine Propulsion Light Treads Treads Light Treads Leg Potential Leg Utility Small Storage Unit Device PSU Rigger Storage Small Storage Unit Protection Improved Propulsion Shielding Weapon Assault Rifle Ballistic Gun Assault Rifle Launcher Grenade Launcher Build | -11 -10 -10 -10 -9 -8 ------- Run | Yrd Mat Min Exi Min Mat Slots Evolved 4 | . . . . . 4 Power . | . . . . . . Propulsion 2 | . . . . . 2 Utility 2 | . . . . . 2 Weapon . | . . . . . . Parts Attached 16 | 6 2 . 4 . 4 Power 1 | 1 . . . . . Engine 1 | 1 . . . . . Core . | . . . . . . Reactor . | . . . . . . Propulsion 5 | 2 . . 2 . 1 Treads 2 | 2 . . . . . Leg 3 | . . . 2 . 1 Wheel . | . . . . . . Hover . | . . . . . . Flight . | . . . . . . Utility 5 | 1 . . 2 . 2 Device 2 | . . . 1 . 1 Storage 2 | 1 . . 1 . . Processor . | . . . . . . Hackware . | . . . . . . Protection 1 | . . . . . 1 Artifact . | . . . . . . Weapon 5 | 2 2 . . . 1 Energy Gun . | . . . . . . Energy Cannon . | . . . . . . Ballistic Gun 4 | 2 1 . . . 1 Ballistic Cannon . | . . . . . . Launcher 1 | . 1 . . . . Special Weapon . | . . . . . . Impact Weapon . | . . . . . . Slashing Weapon . | . . . . . . Piercing Weapon . | . . . . . . Special Melee Weapon . | . . . . . . Unidentified Prototypes 2 | . . . 2 . . Parts Lost 1 | . 1 . . . . Power . | . . . . . . Propulsion . | . . . . . . Utility . | . . . . . . Weapon 1 | . 1 . . . . Highest Loss Streak 1 | . 1 . . . . To Critical Strikes . | . . . . . . Average Slot Usage (%) 76 | . 81 71 75 85 78 Engine 12 | . 14 14 14 14 9 Treads 14 | . 28 28 17 . . Leg 12 | . . . 9 28 24 Device 7 | . . . 5 14 17 Storage 12 | . 14 14 14 14 9 Protection 1 | . . . . . 7 Ballistic Gun 14 | . 24 14 14 14 11 Naked Turns . | . . . . . . Heaviest Build 53 | 14 14 12 49 49 53 Greatest Support 77 | 40 40 40 60 60 77 Greatest Overweight (x) . | . . . . . . Average Overweight (x) . | . . . . . . Largest Inventory Capacity 20 | 8 8 8 20 20 20 Average Capacity 11 | 7 8 8 8 20 20 Most Carried 13 | 4 5 6 8 8 13 Average Carried 7 | 2 4 5 6 7 11 Final Capacity 20 | 8 8 8 20 20 20 Final Carried 12 | 4 5 6 8 8 12 Class Distribution -------------------- 100% | Mutant Dominant Class ---------------- Mutant | -10/Materials Mutant | -10/Mines Mutant | -10/Exiles Mutant | -9/Mines Mutant | -8/Materials Resources | -11 -10 -10 -10 -9 -8 ----------- Run | Yrd Mat Min Exi Min Mat Matter Collected 357 | 211 . 33 . 113 . Remotely . | . . . . . . Salvage Created 154 | . 32 . . 122 . Parts 14 | . 8 . . 6 . Haulers Intercepted . | . . . . . . Recyclers Shooed 1 | . . . . 1 . Parts Field Recycled . | . . . . . . Retrieved Matter . | . . . . . . Parts Self-Destructed . | . . . . . . Prevented . | . . . . . . Kills | -11 -10 -10 -10 -9 -8 ------- Run | Yrd Mat Min Exi Min Mat Combat Hostiles Destroyed 5 | . 3 . . 2 . Guns 2 | . . . . 2 . AOE 3 | . 3 . . . . Classes Destroyed 3 | . 2 . . 1 . Recycler 1 | . . . . 1 . Mechanic 1 | . 1 . . . . Swarmer 5 | . 3 . . 2 . Best Kill Streak 4 | . 4 . . 3 . Combat Bots Only 3 | . 3 . . 2 . Max Kills in Single Turn 3 | . 3 . . 1 . Gunslinging . | . . . . . . Exploded 3 | . 3 . . . . Melee . | . . . . . . Uniques/NPCs Destroyed . | . . . . . . Combat | -11 -10 -10 -10 -9 -8 -------- Run | Yrd Mat Min Exi Min Mat Hostile Shots Fired 42 | . 2 . . 18 22 Missed 19 | . 1 . . 5 13 Damage Taken 350 | . 144 . . 97 109 Core 50 | . 19 . . 17 14 Absorbed by Shields . | . . . . . . Redirected to Shielding 43 | . . . . . 43 Core Remaining (%) 92 | 100 . . . 85 . Volleys Fired 13 | . 1 . . 9 3 Largest 2 | . 1 . . 1 2 Hottest 40 | . 30 . . 20 40 Shots Fired 16 | . 1 . . 9 6 Gun 15 | . . . . 9 6 Cannon . | . . . . . . Launcher 1 | . 1 . . . . Special . | . . . . . . Kinetic 15 | . . . . 9 6 Thermal . | . . . . . . Explosive 1 | . 1 . . . . Electromagnetic . | . . . . . . Robot Hit Streak 3 | . . . . 1 3 Robot Miss Streak 4 | . 1 . . 4 1 Penetration Max . | . . . . . . Secondary Targets . | . . . . . . Shots Hit Robots 8 | . . . . 3 5 Core Hits 9 | . 4 . . 3 2 Critical Kills . | . . . . . . Critical Parts Destroyed . | . . . . . . Critical Strikes . | . . . . . . Melee Attacks . | . . . . . . Impact . | . . . . . . Slashing . | . . . . . . Piercing . | . . . . . . Sneak Attacks . | . . . . . . Combat Hostiles . | . . . . . . Follow-up Attacks . | . . . . . . Damage Inflicted 249 | . 133 . . 54 62 Guns 110 | . . . . 54 56 Cannons . | . . . . . . Explosions 133 | . 133 . . . . Melee . | . . . . . . Ramming 6 | . . . . . 6 Kinetic 110 | . . . . 54 56 Thermal 17 | . 17 . . . . Explosive 116 | . 116 . . . . Electromagnetic . | . . . . . . Impact . | . . . . . . Slashing . | . . . . . . Piercing . | . . . . . . Highest Corruption . | . . . . . . Average Corruption . | . . . . . . Corruption Purged . | . . . . . . Corruption Blocked . | . . . . . . Overload Shots . | . . . . . . Overflow Damage . | . . . . . . Projectiles . | . . . . . . Explosions . | . . . . . . Melee . | . . . . . . Knockbacks . | . . . . . . Impact . | . . . . . . Kinetic . | . . . . . . Secondary . | . . . . . . Self-Inflicted Damage 139 | . 139 . . . . Shots 2 | . 2 . . . . Rammed . | . . . . . . Targets Rammed 1 | . . . . . 1 Kicked 1 | . . . . . 1 Crushed . | . . . . . . Highest Temperature 12 | . . . . . 12 Average Temperature 7 | . . . . . 7 Received Heat Transfer 45 | . . . . . 45 Siege Activations . | . . . . . . Robots Corrupted . | . . . . . . Combat Hostiles . | . . . . . . Parts Fried . | . . . . . . Impact Corruptions . | . . . . . . Robots Melted . | . . . . . . Combat Hostiles . | . . . . . . Parts Melted . | . . . . . . Heat Transferred 50 | . 50 . . . . Parts Sabotaged . | . . . . . . Parts Stolen . | . . . . . . Parts Stripped . | . . . . . . Power Chain Reactions . | . . . . . . Alert | -11 -10 -10 -10 -9 -8 ------- Run | Yrd Mat Min Exi Min Mat Peak Influence 111 | . 109 42 . 55 111 Initial 42 | . . 42 . . 21 Average 30 | . 26 42 . 20 40 Maximum Alert Level . | . . . . . . Low Security (%) 100 | 100 100 100 . 100 100 Level 1 . | . . . . . . Level 2 . | . . . . . . Level 3 . | . . . . . . Level 4 . | . . . . . . Level 5 . | . . . . . . High Security . | . . . . . . Max Security . | . . . . . . Squads Dispatched 2 | . . . . . 2 Investigation . | . . . . . . Extermination . | . . . . . . Reinforcement 2 | . . . . . 2 Assault . | . . . . . . Garrison . | . . . . . . Intercept . | . . . . . . Searches Triggered . | . . . . . . Construction Impeded . | . . . . . . Haulers Reinforced . | . . . . . . Active Scanning Responses . | . . . . . . Cargo Convoy Interrupts . | . . . . . . Stealth | -11 -10 -10 -10 -9 -8 --------- Run | Yrd Mat Min Exi Min Mat Distress Signals . | . . . . . . Communications Jammed . | . . . . . . Distress Signals . | . . . . . . Times Spotted 20 | . 3 . . 3 14 Peak Tracking Total 12 | . 3 . . 3 12 Tactical Retreats 2 | . . . . . 2 Traps | -11 -10 -10 -10 -9 -8 ------- Run | Yrd Mat Min Exi Min Mat Traps Triggered . | . . . . . . Indirectly . | . . . . . . Trap Hack Attempts . | . . . . . . Triggered . | . . . . . . Disarmed . | . . . . . . Reprogrammed . | . . . . . . Reused . | . . . . . . Traps Extracted . | . . . . . . Installed . | . . . . . . Triggered . | . . . . . . Objects Rigged 1 | . . . . 1 . Exploded 1 | . . . . 1 . Machines | -11 -10 -10 -10 -9 -8 ---------- Run | Yrd Mat Min Exi Min Mat Machines Disabled 2 | . 2 . . . . Max in Single Turn 2 | . 2 . . . . Machines Repaired . | . . . . . . Machines Dismantled . | . . . . . . Machines Sabotaged . | . . . . . . Overloaded Fab Kills . | . . . . . . Hacking | -11 -10 -10 -10 -9 -8 --------- Run | Yrd Mat Min Exi Min Mat Machines Accessed 1 | . 1 . . . . Terminals 1 | . 1 . . . . Fabricators . | . . . . . . Repair Stations . | . . . . . . Recycling Units . | . . . . . . Scanalyzers . | . . . . . . Garrison Access . | . . . . . . Total Hacks 2 | . 2 . . . . Successful 1 | . 1 . . . . Failed 1 | . 1 . . . . Catastrophic . | . . . . . . Database Lockouts . | . . . . . . Manual 3 | . 2 . 1 . . Terminals 2 | . 2 . . . . Fabricators . | . . . . . . Repair Stations . | . . . . . . Recycling Units . | . . . . . . Scanalyzers . | . . . . . . Garrison Access . | . . . . . . Terminal Hacks . | . . . . . . Fabricator Hacks . | . . . . . . Repair Station Hacks . | . . . . . . Recycling Unit Hacks . | . . . . . . Scanalyzer . | . . . . . . Garrison Access Hacks . | . . . . . . Unauthorized Hacks 1 | . 1 . . . . Terminals 1 | . 1 . . . . Botnet 1 | . 1 . . . . Fabricators . | . . . . . . Repair Stations . | . . . . . . Recycling Units . | . . . . . . Scanalyzers . | . . . . . . Garrison Access . | . . . . . . Data Cores Recovered . | . . . . . . Used . | . . . . . . Hacking Detections 1 | . 1 . . . . Full Trace Events . | . . . . . . Feedback Events . | . . . . . . Feedback Blocked . | . . . . . . Robot Schematics Acquired . | . . . . . . Robots Built . | . . . . . . Authchips . | . . . . . . Time . | . . . . . . Total Robot Build Rating . | . . . . . . Part Schematics Acquired . | . . . . . . Parts Built . | . . . . . . Authchips . | . . . . . . Time . | . . . . . . Total Part Build Rating . | . . . . . . Parts Repaired . | . . . . . . Time . | . . . . . . Parts Recycled . | . . . . . . Recycled Matter . | . . . . . . Retrieved Matter . | . . . . . . Retrieved Components . | . . . . . . Parts Scanalyzed . | . . . . . . Part Schematics Acquired . | . . . . . . Parts Damaged . | . . . . . . Bothacking | -11 -10 -10 -10 -9 -8 ------------ Run | Yrd Mat Min Exi Min Mat Used RIF Installer . | . . . . . . Robots Hacked . | . . . . . . Non-combat . | . . . . . . Combat . | . . . . . . Robot Hacks Applied . | . . . . . . Relay Couplers Released . | . . . . . . Fabnet Peak Effective % . | . . . . . . Robots Rewired . | . . . . . . Allies Hacked . | . . . . . . Hacks Repelled . | . . . . . . Allies | -11 -10 -10 -10 -9 -8 -------- Run | Yrd Mat Min Exi Min Mat Total Allies . | . . . . . . Largest Group . | . . . . . . Highest-Rated Group . | . . . . . . Highest-Rated Ally . | . . . . . . Total Orders . | . . . . . . Ally Attacks . | . . . . . . Total Damage . | . . . . . . Kills . | . . . . . . Allies Corrupted . | . . . . . . Allies Melted . | . . . . . . Intel | -11 -10 -10 -10 -9 -8 ------- Run | Yrd Mat Min Exi Min Mat Robot Analysis Total . | . . . . . . Derelict Logs Recovered 2 | . . 1 . 1 . Drone Launches . | . . . . . . Drone Recoveries . | . . . . . . Exploration | -11 -10 -10 -10 -9 -8 ------------- Run | Yrd Mat Min Exi Min Mat Turns Passed 953 | 110 84 173 301 68 217 Spaces Moved 683 | 62 47 108 235 53 178 Core 2 | 2 . . . . . Treads 332 | 60 47 108 117 . . Legs 349 | . . . 118 53 178 Wheels . | . . . . . . Hover . | . . . . . . Flight . | . . . . . . Fastest Speed 45 | 50 160 160 45 90 62 Average Speed 123 | 156 160 160 124 90 87 Slowest Speed 160 | 160 160 160 160 90 103 Overloaded Moves 54 | . . . 2 . 52 Propulsion Burnouts . | . . . . . . Robots Hopped . | . . . . . . Cave-ins Triggered . | . . . . . . Exploration Rate (%) 26 | 5 18 28 60 18 28 Regions Visited 5 Branch Regions 3 Pre-discovered Areas 1 | . . 1 . . . Known Exits Taken 1 | . . . . 1 . Unknown Exits Taken 4 | 1 1 1 1 . . Scrap Searched 2 | . . 1 . 1 . Spaces Dug . | . . . . . . Terrain Destroyed 13 | . 13 . . . . Melee . | . . . . . . Projectile . | . . . . . . AOE 13 | . 13 . . . . Terrain Rammed . | . . . . . . Walls Destroyed . | . . . . . . Machines Disabled . | . . . . . . Actions | -11 -10 -10 -10 -9 -8 --------- Run | Yrd Mat Min Exi Min Mat Total 774 | 72 54 108 243 64 233 Wait 44 | 1 4 . . . 39 Move 678 | 61 46 107 234 52 178 Hop . | . . . . . . Pick Up 16 | 4 1 1 1 1 8 Fast Attach 9 | 6 . . 3 . . Attach 4 | . . . . . 4 Detach 2 | . . . 2 . . Swap 3 | . 2 . 1 . . Drop 3 | . . . 2 1 . Fire 13 | . 1 . . 9 3 Melee . | . . . . . . Ram . | . . . . . . Kick 1 | . . . . . 1 Crush . | . . . . . . Escape Stasis . | . . . . . . Rewire . | . . . . . . Trap 1 | . . . . 1 . Miscellaneous . | . . . . . . Route ------- -11/Scrapyard -10/Materials -10/Mines -10/Exiles -9/Mines (discovered 2 exits: *Mat x2) -8/Materials History --------- Turn | Location | Event 2 | -11/Scrapyard | Met Revision 17 8 | -11/Scrapyard | Discovered new exit (range 16) 111 | -11/Scrapyard | Entered Materials 177 | -10/Materials | Discovered new exit (range 12) 195 | -10/Materials | Entered Mines 213 | -10/Mines | Learned location of Storage (-7) 253 | -10/Mines | Met a Derelict bent on vengeance 311 | -10/Mines | Build established: Mutant 358 | -10/Mines | Deemed a non-threat by the Exiles lab entrance 360 | -10/Mines | Discovered new exit (range 5) 368 | -10/Mines | Entered Exiles 405 | -10/Exiles | Met 8R-AWN 434 | -10/Exiles | Met EX-HEX 482 | -10/Exiles | Met EX-BIN 500 | -10/Exiles | Aligned with FarCom system 501 | -10/Exiles | Given EX-Vault access code 538 | -10/Exiles | Opened EX-Vault 546 | -10/Exiles | Found Prototype Device 546 | -10/Exiles | Identified PSU Rigger 551 | -10/Exiles | Found Prototype Processor 560 | -10/Exiles | Found Prototype Leg 560 | -10/Exiles | Identified Potential Leg 562 | -10/Exiles | Found Potential Leg 582 | -10/Exiles | Warned to stay clear of 0b10 Research branches 608 | -10/Exiles | Met EX-DEC 657 | -10/Exiles | Discovered new exit (range 14) 669 | -10/Exiles | Stole three prototypes: Potential Leg, PSU Rigger, 0b10 Alert Chip 669 | -10/Exiles | Entered Mines 671 | -9/Mines | Identified exit to Materials 725 | -9/Mines | Discovered exit to Materials (range 13) 737 | -9/Mines | Entered Materials 737 | -8/Materials | Evolved 4 slots: Propulsion x2, Utility x2 954 | -8/Materials | Self-destructed Last Messages --------------- LOCATION=MATERIALS GOAL=ESCAPE 00737_ Receiving FarCom transmissions... 00754_ Acquired Signal Interpreter. 00756_ Acquired Reaction Control System. 00759_ Acquired Signal Interpreter. 00761_ Acquired Imp. Sensor Array. 00773_ Acquired Imp. Propulsion Shielding. 00779_ Acquired Terrain Scan Processor. 00783_ Acquired Titanium Leg. 00799_ K-01 Serf collects debris. 00829_ Acquired Rocket Launcher. 00833_ Kicked U-05 Engineer out of the way. 00850_ K-01 Serf collects debris. 00851_ K-01 Serf cleans the Nuclear Reactor. 00851_ ALERT: Hostiles spotted, dispatching reinforcements to Terminal M009. 00942_ O-16 Technician: "IFF HANDSHAKE FAILED. SECURING TERMINAL." 00949_ ALERT: Hostiles spotted, dispatching reinforcements to Terminal M003. Map ----- +----------------------------------------------------+ | | | | | | | | | | | | | | | | | | | ??????????????????????????????? | | ??????????????????????????????? | | ??????????????????????????????? | | ??????????????????????????????? | | ??????????????????????????????? | | ??????????????????????????????? | | ??????????????????????????????? | | ?????##???????????????????????? | | ????? #??????????????????????? | | ???"""t#??????????????????????? | | #! """ #??????????????????????? | | # """ ####???????????????????? | | # """ # #???????????????????? | | # """ # #???????????????????? | | # # ##+###??????????????? | | # """ + #????Y?????????? | | # """@# s ss #??????????????? | | #[ """ ## ### #??????????????? | | # """ ## #?# #??????????????? | | #! """ ## #?#s +??????????????? | | # ## #?# #??????????????? | | ?########+#?# Y#??????????????? | | ?????# ??# #??????????????? | | ?????# """ # #??????????????? | | ?????# """ + / ???????????? | | ?????# """ # # !!/ #???????? | | ?????# """??#g #! !!/ #???????? | | ?????# ????# #? !!/ #???????? | | ?????######## #?# ####????#### | | ??# ! + ############# | | ??# = # | | ??# # | | ??#! [?########### ##### | | ??# ???????????# #???? | | ??# """ ""????????????# #???? | | ??# """ ""????????????# #???? | | ??? """ "?????????????# #???? | | ????#####?????????????# #???? | | ??????????????????????# #???? | | ??????????????????????# #???? | | ??????????????????????# #???? | +----------------------------------------------------+ Best States ------------- Heat Dissipation 31 Energy Generation 10 Energy Capacity 250 Matter Stores 300 Matter Capacity 300 Sight Range 16 Terrain Scan Density 10 Propulsion Shielding 66 Evasion (%) 66 Recoil Reduction 2 Item Schematics ----------------- None Robot Schematics ------------------ None Fabricated ------------ Nothing Alien Tech Used ----------------- None Achievements -------------- None Challenges ------------ None Game ------ Seed DataPlasmaFalx Manual? 0 Play Time 00:07:53 Cumulative 81.3 hours Start 2024.05.06 @ 18:17:26 End 2024.05.06 @ 18:23:08 Sessions 1 Manual Loads 0 Difficulty Rogue Special Mode None Game No. 122 Rogue 117 Adventurer 5 Explorer 0 Win Type - Total 2 Types 1/0/0/1/0/0/0/0/0 Lore% 42 Gallery% 61 Achievement% 48 Wizard Run 0 Options --------- Layout 0 ASCII 0 Keyboard 0 Movement Mouse Keybinds 0 Fullscreen 1 Font 24/Smallcaps Map View 76x50 Zoom Use 66% Tactical HUD 1 Map Filters NONE Filters NONE Steam 1 RUN: 1629bab4-2e87-4eb8-9347-eda2590b63d7